fUST/lending_fUST_20251012
["ID","MTS","AMOUNT","RATE_DAILY","PERIOD"]
[390949228,1760229072474,-151.0,0.000249,7]
[390949229,1760229072483,-151.0,0.000249,7]
[390949230,1760229072493,-151.0,0.000249,7]
[390949231,1760229072502,-151.0,0.000249,7]
[390949232,1760229072512,-373.718583,0.000249,7]
[390949233,1760229072521,-373.718583,0.000249,7]
[390949234,1760229072530,-151.0,0.000249,7]
[390949235,1760229072540,-373.718583,0.000249,7]
[390949236,1760229072549,-373.718583,0.000249,7]
[390949237,1760229072559,-151.0,0.000249,7]
[390949238,1760229072569,-181.493666,0.000249,7]
[390949239,1760229072579,-258.718148,0.000249,7]
[390949240,1760229072588,-1000.0,0.000249,2]
[390949241,1760229072599,-1000.0,0.000249,2]
[390949242,1760229072610,-1000.0,0.000249,2]
[390949243,1760229072620,-1000.0,0.000249,2]
[390949244,1760229072629,-1000.0,0.000249,2]
[390949245,1760229072639,-1000.0,0.000249,2]
[390949246,1760229072648,-1000.0,0.000249,2]
[390949247,1760229072657,-1000.0,0.000249,2]
[390949248,1760229072667,-1000.0,0.000249,2]
[390949249,1760229072676,-438821.966962,0.000249,2]
[390949250,1760229072685,-1000.0,0.000249,2]
[390949251,1760229072699,-151.0,0.000249,7]
[390949252,1760229072708,-151.0,0.000249,7]
[390949253,1760229072718,-151.0,0.000249,7]
[390949254,1760229072727,-294.998672,0.000249,7]
[390949255,1760229072737,-294.998672,0.000249,7]
[390949256,1760229072747,-294.998672,0.000249,7]
[390949257,1760229072756,-294.998672,0.000249,7]
[390949258,1760229072766,-151.0,0.000249,7]
[390949259,1760229072777,-151.0,0.000249,7]
[390949260,1760229072786,-151.0,0.000249,7]
[390949261,1760229072796,-260.746911,0.000249,7]
[390949262,1760229072806,-260.746911,0.000249,7]
[390949263,1760229072816,-260.746911,0.000249,7]
[390949264,1760229072826,-260.746911,0.000249,7]
[390949265,1760229072836,-151.0,0.000249,7]
[390949266,1760229072845,-151.0,0.000249,7]
[390949267,1760229072854,-151.0,0.000249,7]
[390949268,1760229072863,-151.0,0.000249,7]
[390949269,1760229072872,-151.0,0.000249,7]
[390949270,1760229072882,-151.0,0.000249,7]
[390949271,1760229072892,-151.0,0.000249,7]
[390949272,1760229072901,-151.0,0.000249,7]
[390949273,1760229072911,-151.0,0.000249,7]
[390949274,1760229072922,-173.392585,0.000249,7]
[390949275,1760229072932,-151.0,0.000249,7]
[390949276,1760229072941,-151.0,0.000249,7]
[390949277,1760229072951,-339.495222,0.000249,7]
[390949278,1760229072960,-151.0,0.000249,7]
[390949279,1760229072971,-151.0,0.000249,7]
[390949280,1760229072981,-339.495222,0.000249,7]
[390949281,1760229072991,-151.0,0.000249,7]
[390949282,1760229073002,-151.0,0.000249,7]
[390949283,1760229073012,-339.495222,0.000249,7]
[390949284,1760229073021,-151.0,0.000249,7]
[390949285,1760229073031,-339.495222,0.000249,7]
[390949286,1760229073041,-183.669898,0.000249,7]
[390949287,1760229073050,-183.669898,0.000249,7]
[390949288,1760229073060,-183.669898,0.000249,7]
[390949289,1760229073070,-183.669898,0.000249,7]
[390949290,1760229073080,-796.857653,0.000249,7]
[390949291,1760229073089,-309.825678,0.000249,7]
[390949292,1760229073099,-796.857653,0.000249,7]
[390949293,1760229073110,-309.825678,0.000249,7]
[390949294,1760229073119,-796.857653,0.000249,7]
[390949295,1760229073128,-309.825678,0.000249,7]
[390949296,1760229073138,-796.857653,0.000249,7]
[390949297,1760229073148,-309.825678,0.000249,7]
[390949298,1760229073158,-151.0,0.000249,7]
[390949299,1760229073167,-355.666263,0.000249,7]
[390949300,1760229073177,-355.666263,0.000249,7]
[390949301,1760229073187,-355.666263,0.000249,7]
[390949302,1760229073199,-355.666263,0.000249,7]
[390949303,1760229073214,-151.0,0.000249,7]
[390949304,1760229073226,-151.0,0.000249,7]
[390949305,1760229073240,-1000.0,0.00024912,2]
[390949306,1760229073254,-226.70333089,0.00024917,2]
[390949307,1760229073268,-226.70333089,0.00024917,2]
[390949308,1760229073281,-226.70333089,0.00024917,2]
[390949309,1760229073290,-720.0,0.00024985,20]
[390949310,1760229073300,-251131.60439111,0.00025,2]
[390949311,1760229073481,-476087.96554673,0.00025,2]
[390949312,1760229073493,-32540.02403941,0.00025,2]
[390949313,1760229073991,-500.0,0.00022167,2]
[390949314,1760229074001,-500.0,0.00022167,2]
[390949315,1760229074010,-500.0,0.00022167,2]
[390949316,1760229074019,-478.22076665,0.00022167,2]
[390949317,1760229074031,-21.77923335,0.00022167,2]
[390949318,1760229074040,-283.47,0.00022167,2]
[390949319,1760229074050,-2152.34439955,0.00022169,2]
[390949320,1760229074560,5000.0,0.00021905,2]
[390949321,1760229077867,5000.0,0.00021905,2]
[390949322,1760229078123,150.0,0.00020084,2]
[390949323,1760229081777,1000.0,0.00021161,2]
[390949324,1760229100887,3850.01,0.00021905,2]
[390949325,1760229100928,1149.99,0.00021905,2]
[390949326,1760229104714,-150.0,0.0002191,2]
[390949327,1760229115748,-500.0,0.00022069,2]
[390949328,1760229115788,-500.0,0.00022069,2]
[390949329,1760229115827,-500.0,0.00022069,2]
[390949330,1760229115867,-500.0,0.00022069,2]
[390949331,1760229115911,-500.0,0.00022069,2]
[390949332,1760229115955,-500.0,0.00022069,2]
[390949333,1760229116001,-500.0,0.00022069,2]
[390949334,1760229116040,-346.58629047,0.00022069,2]
[390949335,1760229116084,-500.0,0.00022069,2]
[390949336,1760229116130,-500.0,0.00022069,2]
[390949337,1760229116382,-500.0,0.00022069,2]
[390949338,1760229116426,-500.0,0.00022069,2]
[390949339,1760229116469,-500.0,0.00022069,2]
[390949340,1760229116508,-500.0,0.00022069,2]
[390949341,1760229116551,-500.0,0.00022069,2]
[390949342,1760229116591,-500.0,0.00022069,2]
[390949343,1760229116633,-500.0,0.00022069,2]
[390949344,1760229116675,-500.0,0.00022069,2]
[390949345,1760229116717,-500.0,0.00022069,2]
[390949346,1760229116760,-500.0,0.00022069,2]
[390949347,1760229117189,-500.0,0.00022069,2]
[390949348,1760229117232,-500.0,0.00022069,2]
[390949349,1760229117276,-500.0,0.00022069,2]
[390949350,1760229117316,-500.0,0.00022069,2]
[390949351,1760229117357,-500.0,0.00022069,2]
[390949352,1760229117398,-500.0,0.00022069,2]
[390949353,1760229117440,-500.0,0.00022069,2]
[390949354,1760229117483,-500.0,0.00022069,2]
[390949355,1760229117525,-500.0,0.00022069,2]
[390949356,1760229117565,-500.0,0.00022069,2]
[390949357,1760229117703,2401.03274462,0.0002191,2]
[390949358,1760229117761,-500.0,0.00022069,2]
[390949359,1760229117804,-500.0,0.00022069,2]
[390949360,1760229117848,-500.0,0.00022069,2]
[390949361,1760229117890,-500.0,0.00022069,2]
[390949362,1760229117933,-500.0,0.00022069,2]
[390949363,1760229117976,-500.0,0.00022069,2]
[390949364,1760229118020,-500.0,0.00022069,2]
[390949365,1760229118062,-500.0,0.00022069,2]
[390949366,1760229118104,-500.0,0.00022069,2]
[390949367,1760229118147,-500.0,0.00022069,2]
[390949368,1760229118294,-500.0,0.00022069,2]
[390949369,1760229118335,-500.0,0.00022069,2]
[390949370,1760229118375,-500.0,0.00022069,2]
[390949371,1760229118416,-500.0,0.00022069,2]
[390949372,1760229118457,-500.0,0.00022069,2]
[390949373,1760229118497,-500.0,0.00022069,2]
[390949374,1760229118539,-500.0,0.00022069,2]
[390949375,1760229118578,-500.0,0.00022069,2]
[390949376,1760229118619,-415.930332,0.00022069,2]
[390949377,1760229118657,-500.0,0.00022069,2]
[390949379,1760229121325,-463.36838479,0.00022069,2]
[390949380,1760229121366,-500.0,0.00022069,2]
[390949381,1760229121411,-500.0,0.00022069,2]
[390949382,1760229121455,-500.0,0.00022069,2]
[390949383,1760229121497,-500.0,0.00022069,2]
[390949384,1760229121539,-500.0,0.00022069,2]
[390949385,1760229121581,-500.0,0.00022069,2]
[390949386,1760229121625,-500.0,0.00022069,2]
[390949387,1760229121670,-500.0,0.00022069,2]
[390949388,1760229121725,500.0,0.00022069,2]
[390949389,1760229122444,300.0,0.00022068,2]
[390949391,1760229124280,273.27323042,0.00022069,2]
[390949392,1760229124320,4726.72676958,0.00022069,2]
[390949393,1760229127372,500.0,0.00022069,2]
[390949394,1760229127625,500.0,0.00022069,2]
[390949395,1760229127857,500.0,0.00022069,2]
[390949396,1760229128106,400.0,0.00022069,2]
[390949397,1760229139667,2598.96725538,0.00021814,2]
[390949398,1760229147542,5000.0,0.00021814,2]
[390949399,1760229152564,150.0,0.0002009,2]
[390949401,1760229157891,500.0,0.00030296,60]
[390949402,1760229158119,500.0,0.00030296,60]
[390949403,1760229170585,5000.0,0.00021814,2]
[390949404,1760229193045,5000.0,0.00021814,2]
[390949405,1760229196203,-150.0,0.00021916,2]
[390949406,1760229211850,-198.72,0.00022057,10]
[390949407,1760229211890,-165.6,0.00022057,10]
[390949408,1760229215669,5000.0,0.00022057,2]
[390949409,1760229220823,828.02,0.00022057,10]
[390949410,1760229227001,150.0,0.00019916,2]
[390949411,1760229227391,150.0,0.00021727,2]
[390949412,1760229232317,238.46,0.00022057,10]
[390949413,1760229238228,5000.0,0.00022057,2]
[390949414,1760229246506,165.04515383,0.00021968,2]
[390949415,1760229259850,255.51222902,0.00021968,2]
[390949416,1760229260760,1847.24,0.00022057,3]
[390949417,1760229260980,2343.75261715,0.00022057,2]
[390949418,1760229261003,2656.24738285,0.00022057,2]
[390949419,1760229271466,923.62,0.00022057,3]
[390949420,1760229282185,461.81,0.00022057,3]
[390949421,1760229283458,5000.0,0.00022057,2]
[390949422,1760229293042,1084.17,0.00022057,3]
[390949423,1760229300546,1763.77985346,0.00021969,2]
[390949424,1760229303578,222.93,0.00019929,2]
[390949425,1760229303791,542.09,0.00022057,3]
[390949426,1760229304021,1.61014654,0.0002174,2]
[390949427,1760229304049,444.24985346,0.0002174,2]
[390949428,1760229304759,-300.0,0.00022065,2]
[390949429,1760229304795,-300.0,0.00022065,2]
[390949430,1760229304826,-300.0,0.00022065,2]
[390949431,1760229305836,5000.0,0.00022066,2]
[390949432,1760229308273,1200.0,0.00022065,2]
[390949433,1760229308685,-500.0,0.00022066,2]
[390949434,1760229314451,271.04,0.00022057,3]
[390949435,1760229325177,813.17,0.00022057,3]
[390949436,1760229326695,385.3661903,0.00022066,2]
[390949437,1760229328965,3104.3790757,0.00022066,2]
[390949438,1760229336827,205.10522659,0.00021967,2]
[390949439,1760229337733,500.0,0.00022066,2]
[390949440,1760229344059,500.0,0.00022066,2]
[390949441,1760229353479,500.0,0.00022066,2]
[390949442,1760229353706,500.0,0.00022066,2]
[390949443,1760229384292,265.76,0.00019908,2]
[390949444,1760229384695,531.53,0.00021718,2]
[390949445,1760229405183,-485.37890245,0.00021968,2]
[390949446,1760229450392,243.32592813,0.00021965,2]
[390949447,1760229472818,292.29,0.00019907,2]
[390949448,1760229473226,584.58,0.00021716,2]
[390949449,1760229479709,968.82,0.00015225,7]
[390949450,1760229479965,968.82,0.00015225,7]
[390949451,1760229532955,201.64,0.00022054,10]
[390949452,1760229543903,193.41,0.00022054,10]
[390949453,1760229552663,283.04,0.00021468,2]
[390949454,1760229555471,201.51,0.00022054,10]
[390949455,1760229576854,309.57,0.00030253,60]
[390949460,1760229634020,293.66,0.00019894,2]
[390949461,1760229635137,587.32,0.00021703,2]
[390949462,1760229645666,-2979.12640794,0.00021967,2]
[390949463,1760229649612,253.46357268,0.00021954,2]
[390949464,1760229650312,773.1171698,0.00021967,2]
[390949465,1760229658425,205.10522659,0.00021955,2]
[390949466,1760229658587,991.508496,0.00013699,2]
[390949467,1760229658802,991.508496,0.00020187,2]
[390949468,1760229660515,150.22,0.00022044,10]
[390949469,1760229671938,751.12,0.00022044,10]
[390949470,1760229714679,346.44,0.00019882,2]
[390949471,1760229715120,692.89,0.0002169,2]
[390949472,1760229794812,333.21,0.00019876,2]
[390949473,1760229795219,666.43,0.00021683,2]
[390949474,1760229874262,320.49,0.00020049,2]
[390949475,1760229955335,316.41,0.00020049,2]
[390949476,1760230042209,312.39,0.00020041,2]
[390949477,1760230052429,-6000.0,0.0002204,10]
[390949478,1760230121976,308.41,0.0002004,2]
[390949479,1760230203273,304.49,0.00020042,2]
[390949563,1760230238172,-608.97,0.00021864,2]
[390949564,1760230238182,-1200.0,0.0002195,2]
[390949565,1760230238192,-7493.03771211,0.00021951,2]
[390949566,1760230238201,-300.0,0.00021953,2]
[390949567,1760230238211,-300.0,0.00021953,2]
[390949568,1760230238220,-300.0,0.00021953,2]
[390949569,1760230238229,-300.0,0.00021953,2]
[390949570,1760230238239,-300.0,0.00021953,2]
[390949571,1760230238249,-327.16051207,0.00021954,2]
[390949572,1760230238259,-1200.0,0.00021954,2]
[390949573,1760230238269,-2932.26075898,0.00021966,2]
[390949574,1760230238278,-500.0,0.00021967,2]
[390949575,1760230238288,-500.0,0.00021967,2]
[390949576,1760230238297,-500.0,0.00021967,2]
[390949577,1760230238307,-500.0,0.00021967,2]
[390949578,1760230238317,-500.0,0.00021967,2]
[390949579,1760230238326,-500.0,0.00021967,2]
[390949580,1760230238338,-500.0,0.00021967,2]
[390949581,1760230238351,-500.0,0.00021967,2]
[390949582,1760230238362,-500.0,0.00021967,2]
[390949583,1760230238372,-552.9,0.00021967,2]
[390949584,1760230238381,-649.52,0.00021967,2]
[390949585,1760230238391,-500.0,0.00021967,2]
[390949586,1760230238402,-500.0,0.00021967,2]
[390949587,1760230238412,-500.0,0.00021967,2]
[390949588,1760230238424,-500.0,0.00021967,2]
[390949589,1760230238434,-500.0,0.00021967,2]
[390949590,1760230238445,-500.0,0.00021967,2]
[390949591,1760230238455,-500.0,0.00021967,2]
[390949592,1760230238466,-500.0,0.00021967,2]
[390949593,1760230238476,-500.0,0.00021967,2]
[390949594,1760230238488,-500.0,0.00021967,2]
[390949595,1760230238498,-500.0,0.00021967,2]
[390949596,1760230238507,-500.0,0.00021967,2]
[390949597,1760230238518,-500.0,0.00021967,2]
[390949598,1760230238528,-500.0,0.00021967,2]
[390949599,1760230238542,-500.0,0.00021967,2]
[390949600,1760230238553,-275.47,0.00021967,2]
[390949601,1760230238564,-28650.09657882,0.00021968,3]
[390949602,1760230238574,-500.0,0.00021973,2]
[390949603,1760230238585,-500.55905955,0.00021973,2]
[390949604,1760230238595,-500.0,0.00021973,2]
[390949605,1760230238607,-500.0,0.00021973,2]
[390949606,1760230238617,-502.60079924,0.00021973,2]
[390949607,1760230238627,-500.0,0.00021973,2]
[390949608,1760230238638,-500.0,0.00021973,2]
[390949609,1760230238647,-500.0,0.00021973,2]
[390949610,1760230238657,-500.0,0.00021973,2]
[390949611,1760230238667,-500.0,0.00021973,2]
[390949612,1760230238677,-510.72499084,0.00021973,2]
[390949613,1760230238687,-2252.25,0.00021978,3]
[390949614,1760230238696,-1126.12,0.00021978,3]
[390949615,1760230238706,-375.38,0.00021978,3]
[390949616,1760230238716,-750.76,0.00021978,3]
[390949617,1760230238726,-3078.96,0.00021978,10]
[390949618,1760230238735,-2881.8,0.00021979,3]
[390949619,1760230238745,-500.0,0.00021987,2]
[390949620,1760230238755,-500.0,0.00021987,2]
[390949621,1760230238765,-500.0,0.00021987,2]
[390949622,1760230238775,-500.0,0.00021987,2]
[390949623,1760230238784,-500.0,0.00021987,2]
[390949624,1760230238795,-500.0,0.00021987,2]
[390949625,1760230238804,-500.0,0.00021987,2]
[390949626,1760230238814,-500.0,0.00021987,2]
[390949627,1760230238825,-500.0,0.00021987,2]
[390949628,1760230238834,-500.0,0.00021987,2]
[390949629,1760230238844,-500.0,0.00021987,2]
[390949630,1760230238858,-500.0,0.00021987,2]
[390949631,1760230238869,-500.0,0.00021987,2]
[390949632,1760230238879,-500.0,0.00021987,2]
[390949633,1760230238888,-500.0,0.00021987,2]
[390949634,1760230238898,-500.0,0.00021987,2]
[390949635,1760230238908,-500.0,0.00021987,2]
[390949636,1760230238918,-635.26934183,0.00021987,2]
[390949637,1760230238927,-500.0,0.00021987,2]
[390949638,1760230238936,-500.0,0.00021987,2]
[390949639,1760230238946,-500.0,0.00021987,2]
[390949640,1760230238955,-500.0,0.00021987,2]
[390949641,1760230238966,-626.13067891,0.00021987,2]
[390949642,1760230238978,-500.0,0.00021987,2]
[390949643,1760230238991,-500.0,0.00021987,2]
[390949644,1760230239000,-500.0,0.00021987,2]
[390949645,1760230239010,-500.0,0.00021987,2]
[390949646,1760230239020,-500.0,0.00021987,2]
[390949647,1760230239030,-500.0,0.00021987,2]
[390949648,1760230239044,-500.0,0.00021987,2]
[390949649,1760230239053,-500.0,0.00021987,2]
[390949650,1760230239063,-500.0,0.00021987,2]
[390949651,1760230239075,-500.0,0.00021987,2]
[390949652,1760230239086,-500.0,0.00021987,2]
[390949654,1760230239098,-500.0,0.00021987,2]
[390949655,1760230239107,-500.0,0.00021987,2]
[390949657,1760230239123,-421.41435592,0.00021987,2]
[390949659,1760230239134,-500.0,0.00021987,2]
[390949661,1760230239144,-500.0,0.00021987,2]
[390949662,1760230239155,-500.0,0.00021987,2]
[390949664,1760230239165,-500.0,0.00021987,2]
[390949666,1760230239175,-500.0,0.00021987,2]
[390949667,1760230239185,-500.0,0.00021987,2]
[390949668,1760230239195,-500.0,0.00021987,2]
[390949669,1760230239204,-500.0,0.00021987,2]
[390949670,1760230239214,-500.0,0.00021987,2]
[390949671,1760230239224,-500.0,0.00021987,2]
[390949672,1760230239235,-500.0,0.00021987,2]
[390949673,1760230239244,-500.0,0.00021987,2]
[390949674,1760230239254,-500.0,0.00021987,2]
[390949675,1760230239265,-500.0,0.00021987,2]
[390949676,1760230239275,-500.0,0.00021987,2]
[390949677,1760230239286,-500.0,0.00021987,2]
[390949678,1760230239295,-500.0,0.00021987,2]
[390949679,1760230239306,-500.0,0.00021987,2]
[390949681,1760230239315,-509.43143216,0.00021987,2]
[390949683,1760230239325,-500.0,0.00021987,2]
[390949685,1760230239334,-500.0,0.00021987,2]
[390949687,1760230239343,-500.0,0.00021987,2]
[390949689,1760230239353,-500.0,0.00021987,2]
[390949690,1760230239362,-500.0,0.00021987,2]
[390949692,1760230239371,-500.0,0.00021987,2]
[390949694,1760230239380,-500.0,0.00021987,2]
[390949695,1760230239390,-500.0,0.00021987,2]
[390949697,1760230239399,-500.0,0.00021987,2]
[390949698,1760230239408,-500.0,0.00021987,2]
[390949700,1760230239417,-500.0,0.00021987,2]
[390949702,1760230239426,-500.0,0.00021987,2]
[390949704,1760230239435,-500.0,0.00021987,2]
[390949705,1760230239444,-500.0,0.00021987,2]
[390949706,1760230239453,-500.0,0.00021987,2]
[390949707,1760230239463,-500.0,0.00021987,2]
[390949708,1760230239471,-500.0,0.00021987,2]
[390949709,1760230239481,-500.0,0.00021987,2]
[390949710,1760230239490,-500.0,0.00021987,2]
[390949711,1760230239499,-500.0,0.00021987,2]
[390949712,1760230239508,-500.0,0.00021987,2]
[390949713,1760230239517,-500.0,0.00021987,2]
[390949714,1760230239526,-500.0,0.00021987,2]
[390949715,1760230239535,-500.0,0.00021987,2]
[390949716,1760230239544,-500.0,0.00021987,2]
[390949717,1760230239553,-500.0,0.00021987,2]
[390949718,1760230239563,-500.0,0.00021987,2]
[390949719,1760230239572,-500.0,0.00021987,2]
[390949720,1760230239582,-444.74639823,0.00021987,2]
[390949721,1760230239591,-500.0,0.00021987,2]
[390949722,1760230239600,-500.0,0.00021987,2]
[390949723,1760230239610,-500.0,0.00021987,2]
[390949724,1760230239619,-500.0,0.00021987,2]
[390949725,1760230239627,-500.0,0.00021987,2]
[390949726,1760230239637,-500.0,0.00021987,2]
[390949727,1760230239645,-500.0,0.00021987,2]
[390949728,1760230239654,-500.0,0.00021987,2]
[390949729,1760230239664,-500.0,0.00021987,2]
[390949730,1760230239673,-500.0,0.00021987,2]
[390949731,1760230239682,-500.0,0.00021987,2]
[390949732,1760230239691,-500.0,0.00021987,2]
[390949733,1760230239700,-500.0,0.00021987,2]
[390949734,1760230239710,-500.0,0.00021987,2]
[390949735,1760230239719,-500.0,0.00021987,2]
[390949736,1760230239728,-500.0,0.00021987,2]
[390949737,1760230239738,-500.0,0.00021987,2]
[390949738,1760230239748,-500.0,0.00021987,2]
[390949739,1760230239763,-500.0,0.00021987,2]
[390949740,1760230239774,-426.15573351,0.00021987,2]
[390949741,1760230239784,-500.0,0.00021987,2]
[390949742,1760230239793,-500.0,0.00021987,2]
[390949743,1760230239802,-500.0,0.00021987,2]
[390949744,1760230239811,-500.0,0.00021987,2]
[390949746,1760230239828,-500.0,0.00021987,2]
[390949747,1760230239840,-200.0,0.00021987,2]
[390949748,1760230239850,-500.0,0.00021987,2]
[390949749,1760230239859,-500.0,0.00021987,2]
[390949750,1760230239869,-500.0,0.00021987,2]
[390949751,1760230239879,-500.0,0.00021987,2]
[390949752,1760230239888,-500.0,0.00021987,2]
[390949753,1760230239897,-500.0,0.00021987,2]
[390949754,1760230239907,-500.0,0.00021987,2]
[390949755,1760230239917,-500.0,0.00021988,2]
[390949756,1760230239926,-500.0,0.00021989,2]
[390949757,1760230239935,-500.0,0.00021989,2]
[390949758,1760230239944,-500.0,0.00021989,2]
[390949759,1760230239966,-260.99987661,0.00021989,2]
[390949760,1760230239987,-43406.49205454,0.0002199,2]
[390949761,1760230239997,-202.58,0.00022,21]
[390949762,1760230240007,-500.0,0.00022,2]
[390949763,1760230240016,-151.0,0.00022,5]
[390949764,1760230240025,-151.0,0.00022,10]
[390949765,1760230240035,-151.0,0.00022,8]
[390949766,1760230240050,-151.0,0.00022,9]
[390949767,1760230240059,-151.0,0.00022,10]
[390949768,1760230240068,-151.0,0.00022,5]
[390949770,1760230240078,-313.0,0.00022044,2]
[390949771,1760230240088,-636.32,0.00022051,2]
[390949772,1760230240097,-636.32,0.00022051,2]
[390949773,1760230240106,-636.32,0.00022051,2]
[390949774,1760230240116,-636.32,0.00022051,2]
[390949776,1760230240125,-636.32,0.00022051,2]
[390949777,1760230240135,-636.32,0.00022051,2]
[390949778,1760230240144,-636.32,0.00022051,2]
[390949779,1760230240153,-636.32,0.00022051,2]
[390949780,1760230240163,-636.32,0.00022051,2]
[390949781,1760230240172,-636.32,0.00022051,2]
[390949782,1760230240182,-636.32,0.00022051,2]
[390949783,1760230240192,-636.32,0.00022051,2]
[390949784,1760230240202,-636.32,0.00022051,2]
[390949785,1760230240211,-636.32,0.00022051,2]
[390949786,1760230240220,-636.32,0.00022051,2]
[390949787,1760230240230,-636.32,0.00022051,2]
[390949788,1760230240239,-636.32,0.00022051,2]
[390949789,1760230240248,-636.32,0.00022051,2]
[390949790,1760230240258,-636.32,0.00022051,2]
[390949791,1760230240267,-636.32,0.00022051,2]
[390949792,1760230240276,-636.32,0.00022051,2]
[390949793,1760230240285,-636.32,0.00022051,2]
[390949794,1760230240294,-636.32,0.00022051,2]
[390949795,1760230240304,-636.40248224,0.00022051,2]
[390949796,1760230240313,-500.0,0.00022051,2]
[390949797,1760230240323,-500.0,0.00022051,2]
[390949798,1760230240332,-500.0,0.00022051,2]
[390949799,1760230240342,-567.87732806,0.00022051,2]
[390949800,1760230240353,-500.0,0.00022051,2]
[390949801,1760230240363,-480.84182228,0.00022051,2]
[390949802,1760230240372,-500.0,0.00022051,2]
[390949803,1760230240382,-500.0,0.00022051,2]
[390949804,1760230240391,-500.0,0.00022051,2]
[390949805,1760230240401,-500.0,0.00022051,2]
[390949806,1760230240410,-500.0,0.00022051,2]
[390949807,1760230240420,-500.0,0.00022051,2]
[390949808,1760230240429,-500.0,0.00022051,2]
[390949809,1760230240439,-500.0,0.00022051,2]
[390949810,1760230240449,-500.0,0.00022051,2]
[390949811,1760230240458,-253.71694282,0.00022051,2]
[390949812,1760230240468,-500.0,0.00022051,2]
[390949813,1760230240477,-500.0,0.00022051,2]
[390949814,1760230240487,-500.0,0.00022051,2]
[390949815,1760230240496,-500.0,0.00022051,2]
[390949816,1760230240506,-500.0,0.00022051,2]
[390949817,1760230240515,-500.0,0.00022051,2]
[390949818,1760230240524,-500.0,0.00022051,2]
[390949819,1760230240534,-500.0,0.00022051,2]
[390949820,1760230240543,-500.0,0.00022051,2]
[390949822,1760230240552,-479.81,0.00022051,2]
[390949823,1760230240561,-500.0,0.00022051,2]
[390949825,1760230240570,-500.0,0.00022051,2]
[390949827,1760230240579,-500.0,0.00022051,2]
[390949829,1760230240589,-500.0,0.00022051,2]
[390949831,1760230240598,-500.0,0.00022051,2]
[390949833,1760230240609,-500.0,0.00022051,2]
[390949835,1760230240618,-500.0,0.00022051,2]
[390949837,1760230240627,-500.0,0.00022051,2]
[390949839,1760230240637,-500.0,0.00022051,2]
[390949841,1760230240646,-500.0,0.00022051,2]
[390949843,1760230240655,-615.45,0.00022051,2]
[390949845,1760230240665,-500.0,0.00022051,2]
[390949847,1760230240674,-500.0,0.00022051,2]
[390949850,1760230240686,-500.0,0.00022051,2]
[390949852,1760230240695,-500.0,0.00022051,2]
[390949854,1760230240704,-500.0,0.00022051,2]